Workbook

Sheet READ ME
C3: Model Qualifications, Assumptions and Limiting Conditions
C6: Please ensure you read and agree to the following Model Qualifications, Assumptions and Limiting Conditions before progressing. More information can be found in the user guide.
D8: This model conforms to the specifications required by the terms of NERA’s engagement by the Australian Energy Market Commission. This model is not to be used, reproduced, or distributed for any purpose other than those permitted by the terms of NERA’s engagement by the Australian Energy Market Commission without the prior written permission of NERA. Information furnished by others which is incorporated or reflected in this model, is believed to be reliable but has not been verified. No warranty is given as to the accuracy of such information. The results produced by this model are solely for illustrative purposes and should not be used to forecast or predict actual results. NERA accepts no responsibility for any results produced by this model. No obligation is assumed to revise the model to reflect changes, events or conditions which occur subsequent to the date hereof. NERA shall have no responsibility for any modifications to, or derivative works based upon, the model made by the Australian Energy Market Commission or any other third party. All decisions in connection with the use of the model or any results produced by the model are the sole responsibility of the user. This model is provided “as is”, without any warranties or representations, express or implied, as to its accuracy or completeness, and NERA, its affiliates and professional advisor(s), shall not have any liability to any recipient of this model in respect of the information or conclusions set forth herein or any actions taken or refrained from or decisions made as a consequence of the information and conclusions set forth herein, or for any consequential, special or similar damages, even if advised of the possibility of such damages. There are no third party beneficiaries with respect to this model, and NERA does not accept any liability for (i) any third party software (including third party software that may have been recommended by NERA); (ii) any liability that may arise as a result of delay or the user’s failure to install any software updates, upgrades, modifications, bug fixes, enhancements or versions; (iii) the user’s use of the model in a manner other than as permitted pursuant the engagement; (iv) any viruses, worms, disabling, programming codes or other such items that may be introduced to the user’s system, network or hardware as a result of installation and/or operation of any third party software; (v) the model incorporating or being based on the Australian Energy Market Commission’s requirements, materials, or other information provided by or on behalf of the Australian Energy Market Commission; (vi) or any failure of the users’ network and/or their IT system to comply with any requirements necessary to operate any third party software on which operation of the model is reliant and all other losses or damages arising from or relating to the user’s network and/or IT system functionality impairments or failures, network connections and/or telecommunications links. In particular, NERA shall not have any liability to any third party in respect of this model or any results produced by this model or any actions taken or decisions made as a consequence of the results produced by this model.

Sheet Simplified Model
C3: Simplified Model of Locational Marginal Pricing
D8: Model Overview
C11: Overview of Model
D13: This model is comprised of three parts which appear subsequently below: 1) Inputs to the model: In this section, you can customise the setup of the market including specifying generation capacities and load at each node, as well as transmission capacity connecting the nodes. After setting inputs, or choosing to randomise inputs, you may then run the model. 2) Results from the model: In this section, you can review the results from the model run. In particular, you can see the outturn locational marginal prices (LMPs), volume weighted average prices (VWAPs) as well as generation, load, and flows across/between nodes. 3) Generator Financial Outcomes: In this section, you can examine the financial outcomes for any generator in the model. You can see the financial transmission right (FTR) pay-outs resulting from the model run, as well as the calculation of settlement residue (the difference between what load pays for power and what generators are paid for power in each dispatch interval). You can also choose the size of the generator, where it is located, and examine how contract market positions and holding FTRs affects the financial outcomes for the generator.
D16: Look for customisable inputs indicated by the following cell formatting! | M16: INPUT
C19: Network Typology
D21: In this simplified model, we examine a four node network with four transmission links. Each node may contain generation capacity and/or load. The model includes three generation fuel types. Transmission losses are assumed away for simplicity but power flows obey Kirchhoff's Law. The network typology is shown below:
F28: T12 | K28: T31
H31: T23 | O31: T34
C35: Excel Setup
D37: Have you setup excel to be able to run the model? Please ensure:
D39: þ | E39: You have enabled macros to run.
D40: þ | E40: You have correctly installed and loaded a solver.
D41: þ | E41: You have checked to make sure formula calculations are set to automatic.
D43: For more details on how to setup excel, please see our user guide.
D49: Model Inputs
C52: Marginal Cost of Generation Fuel Types
D54: Fuel Type | G54: Marginal Cost ($/MW)
D55: Solar | G55: 0
D56: Coal | G56: 10 | J56: Customise the name and marginal cost of each generation fuel type
D57: Gas | G57: 20
D59: Note: For sensible results, marginal costs should not exceed the value of lost load which is set at $15,000.
C62: Generation Capacity at Each Node
G64: Generation Capacity (MW) | I64: 126 | K64: 240 | M64: 321
D65: Fuel Type | G65: Node 1 | I65: Node 2 | K65: Node 3 | M65: Node 4
D66: =" "&D55 -> Solar | G66: 0 | I66: 0 | K66: 0 | M66: 100
D67: =" "&D56 -> Coal | G67: 0 | I67: 0 | K67: 0 | M67: 100 | O67: Customise generation capacity at each node
D68: =" "&D57 -> Gas | G68: 0 | I68: 0 | K68: 0 | M68: 0
D69: Total (MW) | G69: =SUM(G66:H68) -> 0 | I69: =SUM(I66:J68) -> 0 | K69: =SUM(K66:L68) -> 0 | M69: =SUM(M66:N68) -> 200
D71: Total Generation Across System (MW) | I71: =SUM(G69:N69) -> 200
C75: Load at Each Node
G76: Node 1 | I76: Node 2 | K76: Node 3 | M76: Node 4
D77: Load (MW) | G77: 0 | I77: 0 | K77: 0 | M77: 130
O78: Customise the load at each node
D79: Total Load Across System (MW) | I79: =SUM(G77:N77) -> 130
C83: Transmission Capacities
G84: T12 | I84: T23 | K84: T31 | M84: T34
D85: Capacity (MW) | G85: 100 | I85: 100 | K85: 100 | M85: 100
O86: Customise the transmission capacity on each line
I91: Scenario Editor
I94: Scenario Creator
J98: Save current inputs as a custom scenario with description below | O98: Choose scenario to load from saved scenarios
I101: Enter Scenario Description Below: | N101: Choose Scenario to Load: | Q101: 1
N102: =IF(INDEX('My Scenarios'!$D$21:$D$70,MATCH('Simplified Model'!Q101,'My Scenarios'!$C$21:$C$70,0))="","",INDEX('My Scenarios'!$D$21:$D$70,MATCH('Simplified Model'!Q101,'My Scenarios'!$C$21:$C$70,0))) -> 
I109: Pre-loaded Scenarios
I110: See the User Guide for an Explanation of the Results
D124: Model Results
C127: System Prices
G129: Node 1 | I129: Node 2 | K129: Node 3 | M129: Node 4
D130: LMP ($) | G130: ='Simplified Model Solver'!C41 -> 10 | I130: ='Simplified Model Solver'!H41 -> 10 | K130: ='Simplified Model Solver'!N41 -> 10 | M130: ='Simplified Model Solver'!S41 -> 10
D131: Load (MW) | G131: =G77 -> 0 | I131: =I77 -> 0 | K131: =K77 -> 0 | M131: =M77 -> 130
D134: Volume Weighted Average Price (VWAP) ($) | K134: =((G131*G130)+(I131*I130)+(K131*K130)+(M131*M130))/SUM(G131:N131) -> 10
C139: Pattern of Dispatch and Power Flows
F142: Pattern of Dispatch at Node 1
F144: Load (MW) | J144: Generation (MW)
F145: Load Served | H145: =G77-H146 -> 0 | J145: =IF(LEN(D55)>5,LEFT(D55,3)&".",D55) -> Solar | K145: ='Simplified Model Solver'!F52 -> 0 | L145: ="/ "&G66 -> / 0
F146: Lost Load | H146: ='Simplified Model Solver'!F62 -> 0 | J146: =IF(LEN(D56)>5,LEFT(D56,3),D56) -> Coal | K146: ='Simplified Model Solver'!F53 -> 0 | L146: ="/ "&G67 -> / 0
J147: =IF(LEN(D57)>5,LEFT(D57,3),D57) -> Gas | K147: ='Simplified Model Solver'!F54 -> 0 | L147: ="/ "&G68 -> / 0
F148: Total | H148: =H146+H145 -> 0 | J148: Total | K148: =SUM(K145:L147) -> 0 | L148: ="/ "&G69 -> / 0
F150: Net Injection (MW): | I150: ='Simplified Model Solver'!F84 -> -0.01 | K150: LMP ($) | L150: =G130 -> 10 | O150: Pattern of Dispatch at Node 4
O152: Load (MW) | S152: Generation (MW)
E153: =" "&ABS('Simplified Model Solver'!E35) -> 0 | F153: ="/ "&G85&" MW" -> / 100 MW | K153: =ABS('Simplified Model Solver'!H27) -> 0.01 | L153: ="/ "&K85&" MW" -> / 100 MW | O153: Load Served | Q153: =M77-Q154 -> 130 | S153: =J145 -> Solar | T153: ='Simplified Model Solver'!I52 -> 100 | U153: ="/ "&M66 -> / 100
O154: Lost Load | Q154: ='Simplified Model Solver'!I62 -> 0 | S154: =J146 -> Coal | T154: ='Simplified Model Solver'!I53 -> 30 | U154: ="/ "&M67 -> / 100
S155: =J147 -> Gas | T155: ='Simplified Model Solver'!I54 -> 0 | U155: ="/ "&M68 -> / 0
E156: =" "&_xlfn.IFS(ROUND('Simplified Model Solver'!E35,1)<0," à"&" à"&" à",ROUND('Simplified Model Solver'!E35,1)=0,"",ROUND('Simplified Model Solver'!E35,1)>0," ß"&" ß"&" ß") ->  | K156: =" "&_xlfn.IFS(ROUND('Simplified Model Solver'!H27,1)<0," à"&" à"&" à",ROUND('Simplified Model Solver'!H27,1)=0,"",ROUND('Simplified Model Solver'!H27,1)>0," ß"&" ß"&" ß") ->  | O156: Total | Q156: =Q154+Q153 -> 130 | S156: Total | T156: =SUM(T153:U155) -> 130 | U156: ="/ "&M69 -> / 200
O158: Net Injection (MW): | R158: ='Simplified Model Solver'!I84 -> 0.03 | T158: LMP ($) | U158: =M130 -> 10
H162: =ABS('Simplified Model Solver'!J35) -> 0 | I162: =" / "&I85&" MW" -> / 100 MW | O162: =ABS('Simplified Model Solver'!P35) -> 0.03 | P162: =" / "&M85&" MW" -> / 100 MW
H164: =_xlfn.IFS(ROUND('Simplified Model Solver'!J35,1)>0," à"&" à"&" à",ROUND('Simplified Model Solver'!J35,1)=0,"",ROUND('Simplified Model Solver'!J35,1)<0," ß"&" ß"&" ß") ->  | O164: =_xlfn.IFS(ROUND('Simplified Model Solver'!P35,1)>0," à"&" à"&" à",ROUND('Simplified Model Solver'!P35,1)=0,"",ROUND('Simplified Model Solver'!P35,1)," ß"&" ß"&" ß") -> 
D168: Pattern of Dispatch at Node 2 | M168: Pattern of Dispatch at Node 3
D170: Load (MW) | H170: Generation (MW) | M170: Load (MW) | Q170: Generation (MW)
D171: Load Served | F171: =I77-F172 -> 0 | H171: =J145 -> Solar | I171: ='Simplified Model Solver'!G52 -> 0 | J171: ="/ "&I66 -> / 0 | M171: Load Served | O171: =K77-O172 -> 0 | Q171: =J145 -> Solar | R171: ='Simplified Model Solver'!H52 -> 0 | S171: ="/ "&K66 -> / 0
D172: Lost Load | F172: ='Simplified Model Solver'!G62 -> 0 | H172: =J146 -> Coal | I172: ='Simplified Model Solver'!G53 -> 0 | J172: ="/ "&I67 -> / 0 | M172: Lost Load | O172: ='Simplified Model Solver'!H62 -> 0 | Q172: =J146 -> Coal | R172: ='Simplified Model Solver'!H53 -> 0 | S172: ="/ "&K67 -> / 0
H173: =J147 -> Gas | I173: ='Simplified Model Solver'!G54 -> 0 | J173: ="/ "&I68 -> / 0 | Q173: =J147 -> Gas | R173: ='Simplified Model Solver'!H54 -> 0 | S173: ="/ "&K68 -> / 0
D174: Total | F174: =F172+F171 -> 0 | H174: Total | I174: =SUM(I171:J173) -> 0 | J174: ="/ "&I69 -> / 0 | M174: Total | O174: =O172+O171 -> 0 | Q174: Total | R174: =SUM(R171:S173) -> 0 | S174: ="/ "&K69 -> / 0
D176: Net Injection (MW): | G176: ='Simplified Model Solver'!G84 -> -0.01 | I176: LMP ($) | J176: =I130 -> 10 | M176: Net Injection (MW): | P176: ='Simplified Model Solver'!H84 -> -0.01 | R176: LMP ($) | S176: =K130 -> 10
C181: Outcome at Each Node
D183: Node: | E183: Node 3
G185: Choose the node you would like to examine
D187: Locational Marginal Price ($) | I187: =INDEX('Simplified Model Solver'!$F$60:$I$60,1,MATCH($E$183,'Simplified Model Solver'!$F$47:$I$47,0)) -> 10
D189: Generation (MW) | G189: MC ($) | H189: Gen. | I189: Capacity | K189: Load (MW)
D190: =" "&D66 -> Solar | G190: =G55 -> 0 | H190: =INDEX('Simplified Model Solver'!$F52:$I52,1,MATCH($E$183,'Simplified Model Solver'!$F$47:$I$47,0)) -> 0 | I190: =INDEX('Simplified Model Solver'!$U53:$X53,1,MATCH($E$183,'Simplified Model Solver'!$U$49:$X$49,0)) -> 0 | K190: Load Served | N190: =INDEX('Simplified Model Solver'!$U$58:$X$58,1,MATCH($E$183,'Simplified Model Solver'!$U$49:$X$49,0)) -> 0
D191: =" "&D67 -> Coal | G191: =G56 -> 10 | H191: =INDEX('Simplified Model Solver'!$F53:$I53,1,MATCH($E$183,'Simplified Model Solver'!$F$47:$I$47,0)) -> 0 | I191: =INDEX('Simplified Model Solver'!$U54:$X54,1,MATCH($E$183,'Simplified Model Solver'!$U$49:$X$49,0)) -> 0 | K191: Lost Load | N191: =INDEX('Simplified Model Solver'!$U$57:$X$57,1,MATCH($E$183,'Simplified Model Solver'!$U$49:$X$49,0)) -> 0
D192: =" "&D68 -> Gas | G192: =G57 -> 20 | H192: =INDEX('Simplified Model Solver'!$F54:$I54,1,MATCH($E$183,'Simplified Model Solver'!$F$47:$I$47,0)) -> 0 | I192: =INDEX('Simplified Model Solver'!$U55:$X55,1,MATCH($E$183,'Simplified Model Solver'!$U$49:$X$49,0)) -> 0
D193: Total | H193: =SUM(H190:H192) -> 0 | I193: =SUM(I190:I192) -> 0 | K193: Load | M193: =N190+N191 -> 0 | P193: Net Injection (MW): | S193: =INDEX('Simplified Model Solver'!$F$84:$I$84,1,MATCH('Simplified Model'!E183,'Simplified Model Solver'!$F$47:$I$47,0)) -> -0.01
D208: Financial Market Outcomes
C211: Settlement Residue
G213: Node 1 | I213: Node 2 | K213: Node 3 | M213: Node 4 | O213: Total
D214: Load (MW) | G214: =G131 -> 0 | I214: =I131 -> 0 | K214: =K131 -> 0 | M214: =M131 -> 130 | O214: =SUM(G214:N214) -> 130
D215: VWAP ($) | G215: =$K$134 -> 10 | I215: =$K$134 -> 10 | K215: =$K$134 -> 10 | M215: =$K$134 -> 10 | O215: =$K$134 -> 10
D216: Total Revenue ($) | G216: =G214*G215 -> 0 | I216: =I214*I215 -> 0 | K216: =K214*K215 -> 0 | M216: =M214*M215 -> 1300 | O216: =SUM(G216:N216) -> 1300
G218: Node 1 | I218: Node 2 | K218: Node 3 | M218: Node 4 | O218: Total
D219: Generation (MW) | G219: =K148 -> 0 | I219: =I174 -> 0 | K219: =R174 -> 0 | M219: =T156 -> 130 | O219: =SUM(G219:N219) -> 130
D220: LMP ($) | G220: =G130 -> 10 | I220: =I130 -> 10 | K220: =K130 -> 10 | M220: =M130 -> 10
D221: Total Cost ($) | G221: =G219*G220 -> 0 | I221: =I219*I220 -> 0 | K221: =K219*K220 -> 0 | M221: =M219*M220 -> 1300 | O221: =SUM(G221:N221) -> 1300
D223: Settlement Residue ($) | G223: =O216-O221 -> 0 | J223: Settlement residue is calculated as the difference between what load pays for power and what generators get paid for power, or more formally, the sum of (flows on line times price differences on either side of the line) across the system.
C228: FTR Pay-Outs and Fair Value ($)
E230: From: | F230: To: | G230: VWAP | K230: To: | L230: From: | M230: VWAP
E231: Node 1 | G231: =MAX(G215-G220,0) -> 0 | K231: Node 1 | M231: =MAX(G220-G215,0) -> 0
E232: Node 2 | G232: =MAX(I215-I220,0) -> 0 | K232: Node 2 | M232: =MAX(I220-I215,0) -> 0
E233: Node 3 | G233: =MAX(K215-K220,0) -> 0 | K233: Node 3 | M233: =MAX(K220-K215,0) -> 0
E234: Node 4 | G234: =MAX(M215-M220,0) -> 0 | K234: Node 4 | M234: =MAX(M220-M215,0) -> 0
C238: Generator Financial Outcomes
D241: Overview of Generation Across Nodes
D243: Node 1 Generation (MW) | H243: Node 2 Generation (MW) | L243: Node 3 Generation (MW) | P243: Node 4 Generation (MW)
D244: =J145 -> Solar | E244: 0 | F244: / 0 | H244: =H171 -> Solar | I244: 0 | J244: / 0 | L244: =Q171 -> Solar | M244: 0 | N244: / 0 | P244: =S153 -> Solar | Q244: 100 | R244: / 100
D245: Coal | E245: 0 | F245: / 0 | H245: Coal | I245: 0 | J245: / 0 | L245: Coal | M245: 0 | N245: / 0 | P245: Coal | Q245: 30 | R245: / 100
D246: Gas | E246: 0 | F246: / 0 | H246: Gas | I246: 0 | J246: / 0 | L246: Gas | M246: 0 | N246: / 0 | P246: Gas | Q246: 0 | R246: / 0
D247: Total | E247: 0 | F247: / 0 | H247: Total | I247: 0 | J247: / 0 | L247: Total | M247: 0 | N247: / 0 | P247: Total | Q247: 130 | R247: / 200
D249: LMP ($) | E249: =G220 -> 10 | H249: LMP ($) | I249: =I220 -> 10 | L249: LMP ($) | M249: =K220 -> 10 | P249: LMP ($) | Q249: =M220 -> 10
D251: VWAP ($) | F251: =G215 -> 10
D255: Generator Financial Outcomes
D257: Node: | F257: Node 4
H258: Choose the node you would like to examine
D259: Fuel: | F259: Gas
H260: Choose the generation fuel type you would like to examine
D261: Capacity (MW): | F261: 0
H262: Input the size of plant to examine up to the capacity at the node
D264: Note: Please ensure you have updated the size of plant following selection of a different node or fuel type
E267: Generation Capacity (MW) | I267: =F261 -> 0
E268: Percentage Dispatched | I268: =IF('Simplified Model Solver'!AB33=0,0,INDEX('Simplified Model Solver'!$F$52:$I$54,MATCH($F$259,'Simplified Model Solver'!$E$52:$E$54,0),MATCH($F$257,'Simplified Model Solver'!$F$47:$I$47,0))/'Simplified Model Solver'!AB33) -> 0
E269: Generation (MW) | I269: =I268*I267 -> 0
E271: LMP ($) | I271: =INDEX('Simplified Model Solver'!$F$60:$I$60,1,MATCH($F$257,'Simplified Model Solver'!$F$47:$I$47,0)) -> 10
E272: Generation Revenue ($) | I272: =I271*I269 -> 0
E273: Generation Cost ($) | I273: =INDEX($G$55:$G$57,MATCH($F$259,$D$55:$D$57,0))*I269 -> 0
E274: Profit ($) | I274: =I272-I273 -> 0
D277: Hedging Market
E279: Does the Generator Own a Swap? | J279: Yes
L280: Choose whether the generator owns a swap
E281: Strike Price of Swap : | J281: 20
L282: If Yes, input the strike price of the swap
E283: Volume of Power Under Swap | J283: 80
L284: If Yes, input the volume of generation under the swap
E286: Percentage Outturn Generation Under Contract | K286: =IF(I269=0,"NA",J283/I269) -> NA
E288: Pay-Out on Swap ($) | H288: =IF(J279="No",0,(J281-F251)*J283) -> 800 | K288: The pay-out of the swap is determined by the difference between the strike price of the swap and the VWAP multiplied by the volume of power under the swap.
E289: VWAP ($) | H289: =F251 -> 10
E290: Updated Profit ($) | K290: In this case: | M290: ="(Strike Price - VWAP) * Volume =" -> (Strike Price - VWAP) * Volume = | Q290: =IF(J283=0,"Volume Under Swap is Zero","($"&ROUND(J281,0)&" - $"&ROUND(F251,0)&") * "&ROUND(J283,0)&" = $"&ROUND(H288,0)) -> ($20 - $10) * 80 = $800
D292: FTR Ownership
E294: Does the Generator Own a FTR?
F296: Type | H296: Volume
E297: FTR 1 | F297: VWAP to Node 4 | H297: 50 | J297: ="/ "&INDEX('Simplified Model Solver'!$AL$32:$AL$40,MATCH('Simplified Model'!F297,'Simplified Model Solver'!$AJ$32:$AJ$40,0)) -> / 200
E298: FTR 2 | F298: None | H298: 0 | J298: ="/ "&INDEX('Simplified Model Solver'!$AL$32:$AL$40,MATCH('Simplified Model'!F298,'Simplified Model Solver'!$AJ$32:$AJ$40,0)) -> / NA | K298: Input the type of FTR and the MWs owned
E301: Pay-Out on FTR 1 ($) | H301: =IF(F297="None","NA",INDEX('Simplified Model Solver'!$AK$32:$AK$40,MATCH(F297,'Simplified Model Solver'!$AJ$32:$AJ$40,0))*H297) -> 0 | K301: The pay-out of an FTR is determined by the maximum of the difference in price between where the FTR is purchased to and from and zero, multiplied by the volume of power under the FTR.
E302: Pay-Out on FTR 2 ($) | H302: =IF(F298="None","NA",INDEX('Simplified Model Solver'!$AK$32:$AK$40,MATCH(F298,'Simplified Model Solver'!$AJ$32:$AJ$40,0))*H298) -> NA
E303: Final Profit ($) | H303: =H261+IF(H272="NA",0,H272)+IF(H273="NA",0,H273) -> 0 | K303: In this case, for FTR 1:
L304: ="("&IF(RIGHT(F297,4)="VWAP","VWAP",RIGHT(F297,6)&" LMP")&" - "&IF(RIGHT(F297,4)="VWAP",LEFT(F297,6)&" LMP","VWAP")&") * Volume =" -> (Node 4 LMP - VWAP) * Volume = | P304: =IF(H297=0,"Volume Under FTR is Zero","MAX ($"&IF(RIGHT(F297,4)="VWAP",ROUND(H289,0),ROUND(INDEX($G$220:$N$220,1,(MATCH(RIGHT(F297,6),$G$213:$N$213,0))),0))&" - $"&IF(RIGHT(F297,4)="VWAP",ROUND(INDEX($G$220:$N$220,1,(MATCH(LEFT(F297,6),$G$213:$N$213,0))),0),ROUND(H289,0))&", $0) * "&ROUND(H297,0))&" = $"&ROUND(H301,0) -> MAX ($10 - $10, $0) * 50 = $0
C308: Simulated Financial Outcome
D311: Pressing the simulate button below will run the current model setup five times, and record the financial outcomes for the generator defined through the options above in each case. Only load will vary across the runs, and will be higher or lower than originally specified by the percentage you select below.
E313: Run 1 | G313: Run 2 | I313: Run 3 | K313: Run 4 | M313: Run 5
D314: Load | E314: -0.05 | G314: 0.1 | I314: 0.05 | K314: -0.1 | M314: -0.05
H318: Base Run | J318: Run 1 | L318: Run 2 | N318: Run 3 | P318: Run 4 | R318: Run 5
D319: Generation Capacity (MW)
D320: Percentage Dispatched
D321: Generation (MW)
D323: LMP ($)
D324: Generation Revenue ($)
D325: Generation Cost ($)
D326: Profit ($) | H326: =H324-H325 -> 0 | J326: =J324-J325 -> 0 | L326: =L324-L325 -> 0 | N326: =N324-N325 -> 0 | P326: =P324-P325 -> 0 | R326: =R324-R325 -> 0
D328: Pay-Out on Swap
D329: Pay-Out on FTR 1 ($)
D330: Pay-Out on FTR 2 ($)
D332: Profit Without FTR ($) | H332: =H328+H326 -> 0 | J332: =J328+J326 -> 0 | L332: =L328+L326 -> 0 | N332: =N328+N326 -> 0 | P332: =P328+P326 -> 0 | R332: =R328+R326 -> 0
D333: Profit With FTR ($) | H333: =SUM(H328:I330)+H326 -> 0 | J333: =SUM(J328:K330)+J326 -> 0 | L333: =SUM(L328:M330)+L326 -> 0 | N333: =SUM(N328:O330)+N326 -> 0 | P333: =SUM(P328:Q330)+P326 -> 0 | R333: =SUM(R328:S330)+R326 -> 0
D338: Profit Across Runs | M338: Generation and LMP Across Runs

Sheet My Scenarios
C3: Simplified Model of Locational Marginal Pricing
D8: My Saved Scenarios
K15: Gen. Names | N15: Marginal Costs of Gen# | Q15: Gen Capacity (Node#Gen#) | AC15: Load Across Nodes (L Node#) | AG15: Transmission Capacity
K16: Name 1 | L16: Name 2 | M16: Name 3 | N16: MC1 | O16: MC2 | P16: MC3 | Q16: GC11 | R16: GC12 | S16: GC13 | T16: GC21 | U16: GC22 | V16: GC23 | W16: GC31 | X16: GC32 | Y16: GC33 | Z16: GC41 | AA16: GC42 | AB16: GC43 | AC16: L1 | AD16: L2 | AE16: L3 | AF16: L4 | AG16: T12 | AH16: T23 | AI16: T31 | AJ16: T34
C17: Current Model Inputs | K17: ='Simplified Model'!D55 -> Solar | L17: ='Simplified Model'!D56 -> Coal | M17: ='Simplified Model'!D57 -> Gas | N17: ='Simplified Model'!G55 -> 0 | O17: ='Simplified Model'!G56 -> 10 | P17: ='Simplified Model'!G57 -> 20 | Q17: ='Simplified Model'!G66 -> 0 | R17: ='Simplified Model'!G67 -> 0 | S17: ='Simplified Model'!G68 -> 0 | T17: ='Simplified Model'!I66 -> 0 | U17: ='Simplified Model'!I67 -> 0 | V17: ='Simplified Model'!I68 -> 0 | W17: ='Simplified Model'!K66 -> 0 | X17: ='Simplified Model'!K67 -> 0 | Y17: ='Simplified Model'!K68 -> 0 | Z17: ='Simplified Model'!M66 -> 100 | AA17: ='Simplified Model'!M67 -> 100 | AB17: ='Simplified Model'!M68 -> 0 | AC17: ='Simplified Model'!G77 -> 0 | AD17: ='Simplified Model'!I77 -> 0 | AE17: ='Simplified Model'!K77 -> 0 | AF17: ='Simplified Model'!M77 -> 130 | AG17: ='Simplified Model'!G85 -> 100 | AH17: ='Simplified Model'!I85 -> 100 | AI17: ='Simplified Model'!K85 -> 100 | AJ17: ='Simplified Model'!M85 -> 100
C19: Scenario Number | D19: Description | K19: Gen. Names | N19: Marginal Costs of Gen# | Q19: Gen Capacity (Node#Gen#) | AC19: Load Across Nodes (L Node#) | AG19: Transmission Capacity
K20: Name 1 | L20: Name 2 | M20: Name 3 | N20: MC1 | O20: MC2 | P20: MC3 | Q20: GC11 | R20: GC12 | S20: GC13 | T20: GC21 | U20: GC22 | V20: GC23 | W20: GC31 | X20: GC32 | Y20: GC33 | Z20: GC41 | AA20: GC42 | AB20: GC43 | AC20: L1 | AD20: L2 | AE20: L3 | AF20: L4 | AG20: T12 | AH20: T23 | AI20: T31 | AJ20: T34
C21: 1
C22: 2
C23: 3
C24: 4
C25: 5
C26: 6
C27: 7
C28: 8
C29: 9
C30: 10
C31: 11
C32: 12
C33: 13
C34: 14
C35: 15
C36: 16
C37: 17
C38: 18
C39: 19
C40: 20
C41: 21
C42: 22
C43: 23
C44: 24
C45: 25
C46: 26
C47: 27
C48: 28
C49: 29
C50: 30
C51: 31
C52: 32
C53: 33
C54: 34
C55: 35
C56: 36
C57: 37
C58: 38
C59: 39
C60: 40
C61: 41
C62: 42
C63: 43
C64: 44
C65: 45
C66: 46
C67: 47
C68: 48
C69: 49
C70: 50
D75: Pre-loaded Scenarios
C77: Scenario Number | D77: Description | K77: Gen. Names | N77: Marginal Costs of Gen# | Q77: Gen Capacity (Node#Gen#) | AC77: Load Across Nodes | AG77: Transmission Capacity
K78: Name 1 | L78: Name 2 | M78: Name 3 | N78: MC1 | O78: MC2 | P78: MC3 | Q78: GC11 | R78: GC12 | S78: GC13 | T78: GC21 | U78: GC22 | V78: GC23 | W78: GC31 | X78: GC32 | Y78: GC33 | Z78: GC41 | AA78: GC42 | AB78: GC43 | AC78: L1 | AD78: L2 | AE78: L3 | AF78: L4 | AG78: T1 | AH78: T2 | AI78: T3 | AJ78: T4
C79: 1 | D79: One node dispatch | K79: Solar | L79: Coal | M79: Gas | N79: 0 | O79: 10 | P79: 20 | Q79: 0 | R79: 0 | S79: 0 | T79: 0 | U79: 0 | V79: 0 | W79: 0 | X79: 0 | Y79: 0 | Z79: 100 | AA79: 100 | AB79: 0 | AC79: 0 | AD79: 0 | AE79: 0 | AF79: 130 | AG79: 100 | AH79: 100 | AI79: 100 | AJ79: 100
C80: 2 | D80: Two node dispatch | K80: Solar | L80: Coal | M80: Gas | N80: 0 | O80: 10 | P80: 20 | Q80: 0 | R80: 0 | S80: 0 | T80: 0 | U80: 0 | V80: 0 | W80: 0 | X80: 50 | Y80: 50 | Z80: 100 | AA80: 50 | AB80: 50 | AC80: 0 | AD80: 0 | AE80: 65 | AF80: 130 | AG80: 100 | AH80: 100 | AI80: 100 | AJ80: 100
C81: 3 | D81: No congestion | K81: Solar | L81: Coal | M81: Gas | N81: 0 | O81: 10 | P81: 20 | Q81: 100 | R81: 600 | S81: 0 | T81: 0 | U81: 200 | V81: 100 | W81: 400 | X81: 0 | Y81: 0 | Z81: 0 | AA81: 100 | AB81: 100 | AC81: 200 | AD81: 400 | AE81: 400 | AF81: 100 | AG81: 150 | AH81: 100 | AI81: 300 | AJ81: 200
C82: 4 | D82: Congestion on branch | K82: Solar | L82: Coal | M82: Gas | N82: 0 | O82: 10 | P82: 20 | Q82: 100 | R82: 400 | S82: 200 | T82: 0 | U82: 200 | V82: 100 | W82: 400 | X82: 0 | Y82: 0 | Z82: 0 | AA82: 250 | AB82: 0 | AC82: 550 | AD82: 400 | AE82: 420 | AF82: 100 | AG82: 150 | AH82: 100 | AI82: 300 | AJ82: 100
C83: 5 | D83: Congestion on loop | K83: Solar | L83: Coal | M83: Gas | N83: 0 | O83: 10 | P83: 20 | Q83: 100 | R83: 600 | S83: 0 | T83: 0 | U83: 200 | V83: 100 | W83: 400 | X83: 0 | Y83: 200 | Z83: 0 | AA83: 140 | AB83: 100 | AC83: 200 | AD83: 380 | AE83: 440 | AF83: 200 | AG83: 50 | AH83: 100 | AI83: 300 | AJ83: 200
C84: 6 | D84: Congestion on branch and loop | K84: Solar | L84: Coal | M84: Gas | N84: 0 | O84: 10 | P84: 20 | Q84: 100 | R84: 600 | S84: 0 | T84: 0 | U84: 200 | V84: 100 | W84: 400 | X84: 0 | Y84: 200 | Z84: 0 | AA84: 140 | AB84: 100 | AC84: 200 | AD84: 380 | AE84: 440 | AF84: 60 | AG84: 50 | AH84: 100 | AI84: 300 | AJ84: 20

Sheet Simplified Model Solver (hidden)
E2: MODEL INPUTS
C3: Cost | J3: TOTAL
B4: ='Simplified Model'!D55 -> Solar | C4: ='Simplified Model'!G55 -> 0 | J4: Total load | K4: =C18+H18+N18+S18 -> 130 | X4: Randomise Macro | AK4: Financial Outcomes Load Simulation
B5: ='Simplified Model'!D56 -> Coal | C5: ='Simplified Model'!G56 -> 10 | J5: Total gen | K5: =C14+H14+N14+S14 -> 200
B6: ='Simplified Model'!D57 -> Gas | C6: ='Simplified Model'!G57 -> 20
B7: VoLL | C7: 15000 | AA7: Generation Capacity (MW) | AJ7: Base Run Load | AK7: 200 | AM7: 380 | AO7: 440 | AQ7: 60
X8: Fuel Type | AA8: Node 1 | AC8: Node 2 | AE8: Node 3 | AG8: Node 4 | AK8: ='Simplified Model'!G77 -> 0 | AM8: ='Simplified Model'!I77 -> 0 | AO8: ='Simplified Model'!K77 -> 0 | AQ8: ='Simplified Model'!M77 -> 130
AA9: =RANDBETWEEN(0,500) -> 113 | AC9: =RANDBETWEEN(0,500) -> 284 | AE9: =RANDBETWEEN(0,500) -> 390 | AG9: =RANDBETWEEN(0,500) -> 253
H10: T31 | AA10: =RANDBETWEEN(0,500) -> 61 | AC10: =RANDBETWEEN(0,500) -> 251 | AE10: =RANDBETWEEN(0,500) -> 170 | AG10: =RANDBETWEEN(0,500) -> 307 | AJ10: 1 | AK10: =(1+'Simplified Model'!E314) -> 0.95
H11: ='Simplified Model'!K85 -> 100 | AA11: =RANDBETWEEN(0,500) -> 1 | AC11: =RANDBETWEEN(0,500) -> 483 | AE11: =RANDBETWEEN(0,500) -> 182 | AG11: =RANDBETWEEN(0,500) -> 435 | AK11: =ROUND($AK10*AK$7,0) -> 190 | AM11: =ROUND($AK10*AM$7,0) -> 361 | AO11: =ROUND($AK10*AO$7,0) -> 418 | AQ11: =ROUND($AK10*AQ$7,0) -> 57
X12: Total (MW)
C13: Node 1 | H13: Node 2 | N13: Node 3 | S13: Node 4 | AJ13: 2 | AK13: =(1+'Simplified Model'!G314) -> 1.1
B14: Total Gen | C14: =SUM(C15:C17) -> 0 | G14: Total Gen | H14: =SUM(H15:H17) -> 0 | M14: Total Gen | N14: =SUM(N15:N17) -> 0 | R14: Total Gen | S14: =SUM(S15:S17) -> 200 | X14: Total Generation Across System (MW) | AK14: =ROUND($AK13*AK$7,0) -> 220 | AM14: =ROUND($AK13*AM$7,0) -> 418 | AO14: =ROUND($AK13*AO$7,0) -> 484 | AQ14: =ROUND($AK13*AQ$7,0) -> 66
B15: =$B$4 -> Solar | C15: ='Simplified Model'!G66 -> 0 | G15: =$B$4 -> Solar | H15: ='Simplified Model'!I66 -> 0 | M15: =$B$4 -> Solar | N15: ='Simplified Model'!K66 -> 0 | R15: =$B$4 -> Solar | S15: ='Simplified Model'!M66 -> 100
B16: =$B$5 -> Coal | C16: ='Simplified Model'!G67 -> 0 | E16: ='Simplified Model'!G85 -> 100 | G16: =$B$5 -> Coal | H16: ='Simplified Model'!I67 -> 0 | J16: ='Simplified Model'!I85 -> 100 | M16: =$B$5 -> Coal | N16: ='Simplified Model'!K67 -> 0 | P16: ='Simplified Model'!M85 -> 100 | R16: =$B$5 -> Coal | S16: ='Simplified Model'!M67 -> 100 | AJ16: 3 | AK16: =(1+'Simplified Model'!I314) -> 1.05
B17: =$B$6 -> Gas | C17: ='Simplified Model'!G68 -> 0 | E17: T12 | G17: =$B$6 -> Gas | H17: ='Simplified Model'!I68 -> 0 | J17: T23 | M17: =$B$6 -> Gas | N17: ='Simplified Model'!K68 -> 0 | P17: T34 | R17: =$B$6 -> Gas | S17: ='Simplified Model'!M68 -> 0 | AK17: =ROUND($AK16*AK$7,0) -> 210 | AM17: =ROUND($AK16*AM$7,0) -> 399 | AO17: =ROUND($AK16*AO$7,0) -> 462 | AQ17: =ROUND($AK16*AQ$7,0) -> 63
B18: Load | C18: ='Simplified Model'!G77 -> 0 | G18: Load | H18: ='Simplified Model'!I77 -> 0 | M18: Load | N18: ='Simplified Model'!K77 -> 0 | R18: Load | S18: ='Simplified Model'!M77 -> 130
AA19: Node 1 | AC19: Node 2 | AE19: Node 3 | AG19: Node 4 | AJ19: 4 | AK19: =(1+'Simplified Model'!K314) -> 0.9
X20: Load (MW) | AA20: =RANDBETWEEN(0,850) -> 39 | AC20: =RANDBETWEEN(0,850) -> 456 | AE20: =RANDBETWEEN(0,850) -> 208 | AG20: =RANDBETWEEN(0,850) -> 444 | AK20: =ROUND($AK19*AK$7,0) -> 180 | AM20: =ROUND($AK19*AM$7,0) -> 342 | AO20: =ROUND($AK19*AO$7,0) -> 396 | AQ20: =ROUND($AK19*AQ$7,0) -> 54
X22: Total Load Across System (MW) | AJ22: 5 | AK22: =(1+'Simplified Model'!M314) -> 0.95
E23: MODEL RESULTS | AK23: =ROUND($AK22*AK$7,0) -> 190 | AM23: =ROUND($AK22*AM$7,0) -> 361 | AO23: =ROUND($AK22*AO$7,0) -> 418 | AQ23: =ROUND($AK22*AQ$7,0) -> 57
J24: REGION
J25: VWAP | K25: =((C41*C36)+(H41*H36)+(N41*N36)+(S41*S36))/(C36+H36+N36+S36) -> 10
H26: =IF(ROUND(ABS(H27)-ABS(H11),4)=0,"CONGESTED","UNCONGESTED") -> UNCONGESTED
H27: =H61 -> 0.01 | AA27: T12 | AC27: T23 | AE27: T31 | AG27: T34
X28: Capacity (MW) | AA28: =RANDBETWEEN(0,500) -> 427 | AC28: =RANDBETWEEN(0,500) -> 396 | AE28: =RANDBETWEEN(0,500) -> 232 | AG28: =RANDBETWEEN(0,500) -> 148
B29: 1 | G29: 2 | M29: 3 | R29: 4
B30: Total Gen | C30: =SUM(C31:C33) -> 0 | G30: Total Gen | H30: =SUM(H31:H33) -> 0 | M30: Total Gen | N30: =SUM(N31:N33) -> 0 | R30: Total Gen | S30: =SUM(S31:S33) -> 130
B31: =$B$4 -> Solar | C31: =F52 -> 0 | G31: =$B$4 -> Solar | H31: =G52 -> 0 | M31: =$B$4 -> Solar | N31: =H52 -> 0 | R31: =$B$4 -> Solar | S31: =I52 -> 100 | X31: Data Validation | AJ31: FTR | AK31: Payout | AL31: Capacity | AN31: -0.25 | AO31: <- Load Adjustments
B32: =$B$5 -> Coal | C32: =F53 -> 0 | G32: =$B$5 -> Coal | H32: =G53 -> 0 | M32: =$B$5 -> Coal | N32: =H53 -> 0 | R32: =$B$5 -> Coal | S32: =I53 -> 30 | X32: Nodes: | Z32: Fuel: | AB32: Max capacity of fuel choice | AJ32: Node 1 to VWAP | AK32: ='Simplified Model'!G231 -> 0 | AL32: =C14 -> 0 | AN32: -0.2
B33: =$B$6 -> Gas | C33: =F54 -> 0 | G33: =$B$6 -> Gas | H33: =G54 -> 0 | M33: =$B$6 -> Gas | N33: =H54 -> 0 | R33: =$B$6 -> Gas | S33: =I54 -> 0 | X33: Node 1 | Z33: ='Simplified Model'!D55 -> Solar | AB33: =INDEX('Simplified Model Solver'!$AC$35:$AF$37,MATCH('Simplified Model'!F259,'Simplified Model Solver'!$AB$35:$AB$37,0),MATCH('Simplified Model'!F257,'Simplified Model Solver'!AC34:AF34,0)) -> 0 | AJ33: Node 2 to VWAP | AK33: ='Simplified Model'!G232 -> 0 | AL33: =H14 -> 0 | AN33: -0.15
B34: Spare | C34: =C14-C30 -> 0 | G34: Spare | H34: =H14-H30 -> 0 | M34: Spare | N34: =N14-N30 -> 0 | R34: Spare | S34: =S14-S30 -> 70 | X34: Node 2 | Z34: ='Simplified Model'!D56 -> Coal | AC34: =F47 -> Node 1 | AD34: =G47 -> Node 2 | AE34: =H47 -> Node 3 | AF34: =I47 -> Node 4 | AJ34: Node 3 to VWAP | AK34: ='Simplified Model'!G233 -> 0 | AL34: =N14 -> 0 | AN34: -0.1
B35: VoLL | C35: =F55 -> 0 | E35: =ROUND(F61,0) -> 0 | G35: VoLL | H35: =G55 -> 0 | J35: =ROUND(G61,0) -> 0 | M35: VoLL | N35: =H55 -> 0 | P35: =I61 -> -0.03 | R35: VoLL | S35: =I55 -> 0 | X35: Node 3 | Z35: ='Simplified Model'!D57 -> Gas | AB35: =E52 -> Solar | AC35: ='Simplified Model'!G66 -> 0 | AD35: ='Simplified Model'!I66 -> 0 | AE35: ='Simplified Model'!K66 -> 0 | AF35: ='Simplified Model'!M66 -> 100 | AJ35: Node 4 to VWAP | AK35: ='Simplified Model'!G234 -> 0 | AL35: =S14 -> 200 | AN35: -0.05
B36: Load | C36: =C18 -> 0 | E36: =IF(ROUND(ABS(E35)-ABS(E16),4)=0,"CONGESTED","UNCONGESTED") -> UNCONGESTED | G36: Load | H36: =H18 -> 0 | J36: =IF(ROUND(ABS(J35)-ABS(J16),4)=0,"CONGESTED","UNCONGESTED") -> UNCONGESTED | M36: Load | N36: =N18 -> 0 | P36: =IF(ROUND(ABS(P35)-ABS(P16),4)=0,"CONGESTED","UNCONGESTED") -> UNCONGESTED | R36: Load | S36: =S18 -> 130 | X36: Node 4 | AB36: =E53 -> Coal | AC36: ='Simplified Model'!G67 -> 0 | AD36: ='Simplified Model'!I67 -> 0 | AE36: ='Simplified Model'!K67 -> 0 | AF36: ='Simplified Model'!M67 -> 100 | AJ36: VWAP to Node 1 | AK36: ='Simplified Model'!M231 -> 0 | AL36: =C14 -> 0 | AN36: 0
B37: Power | C37: =F49 -> 0.01 | G37: Power | H37: =G49 -> 0.01 | M37: Power | N37: =H49 -> 0.01 | R37: Power | S37: =I49 -> 129.97 | X37: Hedging: | AB37: =E54 -> Gas | AC37: ='Simplified Model'!G68 -> 0 | AD37: ='Simplified Model'!I68 -> 0 | AE37: ='Simplified Model'!K68 -> 0 | AF37: ='Simplified Model'!M68 -> 0 | AJ37: VWAP to Node 2 | AK37: ='Simplified Model'!M232 -> 0 | AL37: =H14 -> 0 | AN37: 0.05
B38: Imports | C38: =F57 -> 0.01 | G38: Imports | H38: =G57 -> 0.01 | M38: Imports | N38: =H57 -> 0.01 | R38: Imports | S38: =I57 -> 0 | X38: Yes | AJ38: VWAP to Node 3 | AK38: ='Simplified Model'!M233 -> 0 | AL38: =N14 -> 0 | AN38: 0.1
B39: Exports | C39: =F56 -> 0 | G39: Exports | H39: =G56 -> 0 | M39: Exports | N39: =H56 -> 0 | R39: Exports | S39: =I56 -> 0.03 | X39: No | AB39: Lookup on Nodes | AJ39: VWAP to Node 4 | AK39: ='Simplified Model'!M234 -> 0 | AL39: =S14 -> 200 | AN39: 0.15
AB40: Node 1 | AD40: Node 2 | AF40: Node 3 | AH40: Node 4 | AJ40: None | AK40: 0 | AL40: NA | AN40: 0.2
B41: LMP | C41: =F60 -> 10 | G41: LMP | H41: =G60 -> 10 | M41: LMP | N41: =H60 -> 10 | R41: LMP | S41: =I60 -> 10 | AN41: 0.25
C47: PROCESS | F47: Node 1 | G47: Node 2 | H47: Node 3 | I47: Node 4 | T47: Input Summary | AA47: Graph Data | AJ47: Financial Graphs
E48: Load | F48: =C18 -> 0 | G48: =H18 -> 0 | H48: =N18 -> 0 | I48: =S18 -> 130 | AA48: Supply at Node | AK48: Base | AL48: 1 | AM48: 2 | AN48: 3 | AO48: 4 | AP48: 5
E49: Power | F49: =F51+F55-F58 -> 0.01 | G49: =G51+G55-G58 -> 0.01 | H49: =H51+H55-H58 -> 0.01 | I49: =I51+I55-I58 -> 129.97 | U49: Node 1 | V49: Node 2 | W49: Node 3 | X49: Node 4 | AA49: 0 | AB49: ='Simplified Model Solver'!AD62 -> 0 | AC49: ='Simplified Model Solver'!AE62 -> 10 | AD49: ='Simplified Model Solver'!AF62 -> 20 | AE49: ='Simplified Model Solver'!AG62 -> 14000 | AG49: Load | AJ49: Profit Without FTR | AK49: =ROUND('Simplified Model'!H332,0) -> 0 | AL49: =ROUND('Simplified Model'!J332,0) -> 0 | AM49: =ROUND('Simplified Model'!L332,0) -> 0 | AN49: =ROUND('Simplified Model'!N332,0) -> 0 | AO49: =ROUND('Simplified Model'!P332,0) -> 0 | AP49: =ROUND('Simplified Model'!R332,0) -> 0
AA50: 0 | AB50: ='Simplified Model Solver'!AD63 -> 0 | AC50: ='Simplified Model Solver'!AE63+AB50 -> 0 | AD50: ='Simplified Model Solver'!AF63+AC50 -> 0 | AE50: ='Simplified Model Solver'!AG63 -> ∞ | AG50: =MAX(AG53,'Simplified Model'!M193)+1 -> 1 | AH50: 0 | AJ50: Profit With FTR | AK50: =ROUND('Simplified Model'!H333,0) -> 0 | AL50: =ROUND('Simplified Model'!J333,0) -> 0 | AM50: =ROUND('Simplified Model'!L333,0) -> 0 | AN50: =ROUND('Simplified Model'!N333,0) -> 0 | AO50: =ROUND('Simplified Model'!P333,0) -> 0 | AP50: =ROUND('Simplified Model'!R333,0) -> 0
E51: Gen | F51: =SUM(F52:F54) -> 0 | G51: =SUM(G52:G54) -> 0 | H51: =SUM(H52:H54) -> 0 | I51: =SUM(I52:I54) -> 130 | T51: Load | U51: =C18 -> 0 | V51: =H18 -> 0 | W51: =N18 -> 0 | X51: =S18 -> 130 | AA51: Creating Merit Curve | AG51: =AG50 -> 1 | AH51: 1 | AJ51: Generation | AK51: =ROUND('Simplified Model'!H321,0) -> 0 | AL51: =ROUND('Simplified Model'!J321,0) -> 0 | AM51: =ROUND('Simplified Model'!L321,0) -> 0 | AN51: =ROUND('Simplified Model'!N321,0) -> 0 | AO51: =ROUND('Simplified Model'!P321,0) -> 0 | AP51: =ROUND('Simplified Model'!R321,0) -> 0
E52: =$B$4 -> Solar | F52: =ROUND(F69,1) -> 0 | G52: =ROUND(G69,1) -> 0 | H52: 0 | I52: 100 | T52: Gen | U52: =SUM(U53:U55) -> 0 | V52: =SUM(V53:V55) -> 0 | W52: =SUM(W53:W55) -> 0 | X52: =SUM(X53:X55) -> 200 | AA52: =AA50 -> 0 | AB52: =AB49 -> 0 | AC52: =AA53 -> 0 | AD52: =AB49 -> 0 | AE52: =AC55 -> 0 | AF52: =AD55 -> 0 | AG52: Load + Exports | AJ52: LMP | AK52: =ROUND('Simplified Model'!H323,0) -> 0 | AL52: =ROUND('Simplified Model'!J323,0) -> 0 | AM52: =ROUND('Simplified Model'!L323,0) -> 0 | AN52: =ROUND('Simplified Model'!N323,0) -> 0 | AO52: =ROUND('Simplified Model'!P323,0) -> 0 | AP52: =ROUND('Simplified Model'!R323,0) -> 0
E53: =$B$5 -> Coal | F53: =ROUND(F70,1) -> 0 | G53: 0 | H53: 0 | I53: 30 | T53: =$B$4 -> Solar | U53: =C15 -> 0 | V53: =H15 -> 0 | W53: =N15 -> 0 | X53: =S15 -> 100 | AA53: =AB50 -> 0 | AB53: =AB49 -> 0 | AC53: 0 | AD53: =AC49 -> 10 | AE53: =AC52 -> 0 | AF53: =AD52 -> 0 | AG53: ='Simplified Model'!M193+AF67 -> 0 | AH53: 0
E54: =$B$6 -> Gas | F54: =ROUND(F71,1) -> 0 | G54: 0 | H54: 0 | I54: 0 | T54: =$B$5 -> Coal | U54: =C16 -> 0 | V54: =H16 -> 0 | W54: =N16 -> 0 | X54: =S16 -> 100 | AA54: =AC50 -> 0 | AB54: =AC49 -> 10 | AC54: 0 | AD54: =AD49 -> 20 | AE54: =AC56 -> 0 | AF54: =AD56 -> 10 | AG54: =AG53 -> 0 | AH54: 1
E55: VoLL | F55: =ROUND(F72,1) -> 0 | G55: 0 | H55: 0 | I55: 0 | T55: =$B$6 -> Gas | U55: =C17 -> 0 | V55: =H17 -> 0 | W55: =N17 -> 0 | X55: =S17 -> 0 | AA55: =AD50 -> 0 | AB55: =AD49 -> 20 | AC55: 0 | AD55: =AB49 -> 0 | AE55: =AC53 -> 0 | AF55: =AD53 -> 10 | AG55: Load Net of Imports
E56: Exports | F56: =MAX(F58,0) -> 0 | G56: =MAX(G58,0) -> 0 | H56: =MAX(H58,0) -> 0 | I56: =MAX(I58,0) -> 0.03 | AA56: =AA52 -> 0 | AB56: 0 | AC56: 0 | AD56: =AC49 -> 10 | AE56: =AC57 -> 0 | AF56: =AD57 -> 20 | AG56: =AG50-AF69 -> 0.99 | AH56: 0
E57: Imports | F57: =-MIN(0,F58) -> 0.01 | G57: =-MIN(0,G58) -> 0.01 | H57: =-MIN(0,H58) -> 0.01 | I57: =-MIN(0,I58) -> 0 | T57: VoLL | U57: =F62 -> 0 | V57: =G62 -> 0 | W57: =H62 -> 0 | X57: =I62 -> 0 | AA57: 0 | AB57: 0 | AC57: 0 | AD57: =AD49 -> 20 | AE57: =AC54 -> 0 | AF57: =AD54 -> 20 | AG57: =AG56 -> 0.99 | AH57: 1
E58: NX | F58: =F84 -> -0.01 | G58: =G84 -> -0.01 | H58: =H84 -> -0.01 | I58: =I84 -> 0.03 | T58: Load | U58: =U51-U57 -> 0 | V58: =V51-V57 -> 0 | W58: =W51-W57 -> 0 | X58: =X51-X57 -> 130 | AA58: 0 | AB58: 10
AA59: 0 | AB59: 20 | AG59: =ROUND((MAX(AG51,AE57)+0.1*MAX(AG51,AE57))/100,0)*100 -> 0 | AH59: 0
E60: LMP | F60: =ROUND(N93,1) -> 10 | G60: =ROUND(N94,1) -> 10 | H60: =ROUND(N95,1) -> 10 | I60: =ROUND(N96,1) -> 10 | T60: SR | AG60: =AG59 -> 0 | AH60: =AH59 -> 0
C61: Line flow without VoLL | F61: =F87 -> 0 | G61: =G87 -> -0.01 | H61: =H87 -> 0.01 | I61: =I87 -> -0.03
C62: Total VoLL | F62: =F72 -> 0 | G62: =G72 -> 0 | H62: =H72 -> 0 | I62: =I72 -> 0 | AB62: MC ($): | AD62: =MIN('Simplified Model'!G55:I57) -> 0 | AE62: =MEDIAN('Simplified Model'!G55:I57) -> 10 | AF62: =MAX('Simplified Model'!G55:I57) -> 20 | AG62: 14000
AB63: ="Generation to "&'Simplified Model'!E183 -> Generation to Node 3 | AD63: =INDEX('Simplified Model'!$I$190:$I$192,MATCH(AD62,'Simplified Model'!$G$190:$G$192,0)) -> 0 | AE63: =INDEX('Simplified Model'!$I$190:$I$192,MATCH(AE62,'Simplified Model'!$G$190:$G$192,0)) -> 0 | AF63: =INDEX('Simplified Model'!$I$190:$I$192,MATCH(AF62,'Simplified Model'!$G$190:$G$192,0)) -> 0 | AG63: ∞
C64: Model Decision Variables | F64: 1 | G64: 2 | H64: 3 | I64: 4
E65: Load | F65: =C18+$F$66 -> 0.01 | G65: =H18+$F$66 -> 0.01 | H65: =N18+$F$66 -> 0.01 | I65: =S18+$F$66 -> 130.01
E66: Increment | F66: 0.01 | AB66: Flows From Other Nodes (MW)
AB67: Exports | AF67: =INDEX('Simplified Model Solver'!$F$56:$I$56,1,MATCH('Simplified Model'!$E$183,'Simplified Model Solver'!$F$47:$I$47,0)) -> 0
E68: Solution | F68: =SUM(F69:F72) -> 0 | G68: =SUM(G69:G72) -> 0 | H68: =SUM(H69:H72) -> 0 | I68: =SUM(I69:I72) -> 130.04 | AB68: LMP at Exporting Node ($) | AF68: =MIN(INDEX($F$60:$I$60,1,MATCH('Simplified Model'!E183,$F$47:$I$47,0)),AE49) -> 10
E69: =$B$4 -> Solar | F69: 0 | G69: 0 | H69: 0 | I69: 100 | AB69: Imports | AF69: =INDEX('Simplified Model Solver'!$F$57:$I$57,1,MATCH('Simplified Model'!$E$183,'Simplified Model Solver'!$F$47:$I$47,0)) -> 0.01
E70: =$B$5 -> Coal | F70: 0 | G70: 0 | H70: 0 | I70: 30.04
E71: =$B$6 -> Gas | F71: 0 | G71: 0 | H71: 0 | I71: 0 | AB71: Net Flows | AF71: =AF67-AF69 -> -0.01
E72: VoLL | F72: 0 | G72: 0 | H72: 0 | I72: 0
D74: EXPORTS | E74: To:
D75: From: | E75: x1 | G75: 0 | H75: 0 | I75: 0
E76: x2 | F76: 0 | H76: 0 | I76: 0
E77: x3 | F77: 0.01 | G77: 0.01 | I77: 0
E78: x4 | F78: 0 | G78: 0 | H78: 0.03
E80: Exports | F80: =SUM(G75:I75) -> 0 | G80: =SUM(F76,H76,I76) -> 0 | H80: =SUM(F77,G77,I77) -> 0.02 | I80: =SUM(F78:H78) -> 0.03
E81: Imports | F81: =SUM(F76:F78) -> 0.01 | G81: =SUM(G77:G78,G75) -> 0.01 | H81: =SUM(H75:H76,H78) -> 0.03 | I81: =SUM(I75:I77) -> 0
D83: Net Injection | F83: x1 | G83: x2 | H83: x3 | I83: x4
F84: =F80-F81 -> -0.01 | G84: =G80-G81 -> -0.01 | H84: =H80-H81 -> -0.01 | I84: =I80-I81 -> 0.03
F86: T12 | G86: T23 | H86: T31 | I86: T34
E87: Net | F87: =(-2/3*G84)-(1/3*H84)-(1/3*I84) -> 0 | G87: =(1/3*G84)-(1/3*H84)-(1/3*I84) -> -0.01 | H87: =(1/3*G84)+(2/3*H84)+(2/3*I84) -> 0.01 | I87: =-I84 -> -0.03
E88: Transmission : | F88: =SUM(ABS(F87),ABS(G87),ABS(H87),ABS(I87)) -> 0.05
D90: Objective function to min costs: | H90: =(SUM(F69:I69)*C4)+(SUM(F70:I70)*C5)+(SUM(F71:I71)*C6)+(SUM(F72:I72)*C7)+(0.001*F88) -> 300.40005
L91: Deriving LMPs from Duals on Constraints
F92: Power Constraints | L92: Duals | M92: Node | N92: LMP
G93: load (exports and load) 1 = power (imports and gen) 1 | H93: =F80+F65-F68-F81 -> 0 | I93: = | J93: 0 | L93: =INDEX($B$137:$B$223,MATCH("H93=J93",$A$137:$A$223,0)) -> 0 | M93: 1 | N93: =$L$97-L93 -> 10.002333
G94: load 2 = power 2 | H94: =G80+G65-G68-G81 -> 0 | I94: = | J94: 0 | L94: =INDEX($B$137:$B$223,MATCH("H94=J94",$A$137:$A$223,0)) -> 0 | M94: 2 | N94: =$L$97-L94 -> 10.002333
G95: load 3 = power 3 | H95: =H80+H65-H68-H81 -> 0 | I95: = | J95: 0 | L95: =INDEX($B$137:$B$223,MATCH("H95=J95",$A$137:$A$223,0)) -> 0.0013333333 | M95: 3 | N95: =$L$97-L95 -> 10.00099967
G96: load 4 = power 4 | H96: =I80+I65-I68-I81 -> 0 | I96: = | J96: 0 | L96: =INDEX($B$137:$B$223,MATCH("H96=J96",$A$137:$A$223,0)) -> 0.0023333334 | M96: 4 | N96: =$L$97-L96 -> 9.999999667
G97: system power | H97: =F68+G68+H68+I68 -> 130.04 | I97: = | J97: =F65+G65+H65+I65 -> 130.04 | L97: =INDEX($B$137:$B$223,MATCH("H97=J97",$A$137:$A$223,0)) -> 10.002333
F99: Export Non-negativity Constraints
G100: x1 x2 | H100: =G75 -> 0 | I100: >= | J100: 0
G101: x1 x3 | H101: =H75 -> 0 | I101: >= | J101: 0
G102: x1 x4 | H102: =I75 -> 0 | I102: >= | J102: 0
G103: x2 x1 | H103: =F76 -> 0 | I103: >= | J103: 0
G104: x2 x3 | H104: =H76 -> 0 | I104: >= | J104: 0
G105: x2 x4 | H105: =I76 -> 0 | I105: >= | J105: 0
G106: x3 x1 | H106: =F77 -> 0.01 | I106: >= | J106: 0
G107: x3 x2 | H107: =G77 -> 0.01 | I107: >= | J107: 0
G108: x3 x4 | H108: =I77 -> 0 | I108: >= | J108: 0
G109: x4 x1 | H109: =F78 -> 0 | I109: >= | J109: 0
G110: x4 x2 | H110: =G78 -> 0 | I110: >= | J110: 0
G111: x4 x3 | H111: =H78 -> 0.03 | I111: >= | J111: 0
F113: Transmission Constraints
F114: T12 | H114: =F87 -> 0 | I114: <= | J114: =E16 -> 100
F115: T23 | H115: =G87 -> -0.01 | I115: <= | J115: =J16 -> 100
F116: T31 | H116: =H87 -> 0.01 | I116: <= | J116: =H11 -> 100
F117: T34 | H117: =I87 -> -0.03 | I117: <= | J117: =P16 -> 100
F119: T12 | H119: =F87 -> 0 | I119: >= | J119: =-J114 -> -100
F120: T23 | H120: =G87 -> -0.01 | I120: >= | J120: =-J115 -> -100
A121: Model -> | B121: =MIN($H$90) -> 300.40005 | F121: T31 | H121: =H87 -> 0.01 | I121: >= | J121: =-J116 -> -100
B122: =COUNT($F$69:$I$72,$G$75,$H$75,$I$75,$F$76,$H$76,$I$76,$F$77,$G$77,$I$77,$F$78,$G$78,$H$78) -> 28 | F122: T34 | H122: =I87 -> -0.03 | I122: >= | J122: =-J117 -> -100
B123: =$H$100:$H$111>=$J$100:$J$111 -> TRUE
B124: =$H$114:$H$117<=$J$114:$J$117 -> TRUE | F124: Generation Capacity Constraints
B125: =$H$119:$H$122>=$J$119:$J$122 -> TRUE | G125: x1s | H125: =F69 -> 0 | I125: <= | J125: =C15 -> 0
B126: =$H$125:$H$140<=$J$125:$J$140 -> TRUE | G126: x1c | H126: =F70 -> 0 | I126: <= | J126: =C16 -> 0
B127: =$H$142:$H$157>=$J$142:$J$157 -> TRUE | G127: x1g | H127: =F71 -> 0 | I127: <= | J127: =C17 -> 0
B128: =$H$93:$H$97=$J$93:$J$97 -> TRUE | G128: x2s | H128: =G69 -> 0 | I128: <= | J128: =H15 -> 0
B129: ={32767,32767,0.0000000001,0.01,TRUE,FALSE,TRUE,1,1,1,0.0001,FALSE} -> 32767 | G129: x2c | H129: =G70 -> 0 | I129: <= | J129: =H16 -> 0
B130: ={0,0,2,100,0,FALSE,TRUE,0.075,0,0,FALSE,30} -> 0 | G130: x2g | H130: =G71 -> 0 | I130: <= | J130: =H17 -> 0
G131: x3s | H131: =H69 -> 0 | I131: <= | J131: =N15 -> 0
G132: x3c | H132: =H70 -> 0 | I132: <= | J132: =N16 -> 0
G133: x3g | H133: =H71 -> 0 | I133: <= | J133: =N17 -> 0
G134: x4s | H134: =I69 -> 100 | I134: <= | J134: =S15 -> 100
A135: Constraint Results from Model | G135: x4c | H135: =I70 -> 30.04 | I135: <= | J135: =S16 -> 100
A136: Cons | B136: SP | C136: Inc | D136: Dec | G136: x4g | H136: =I71 -> 0 | I136: <= | J136: =S17 -> 0
A137: H100>=J100 | B137: 0.0013333333 | C137: 0.01 | D137: 0.01 | G137: x1V | H137: =F72 -> 0 | I137: <= | J137: =F65 -> 0.01
A138: H101>=J101 | B138: 0.0026666666 | C138: 1e+100 | D138: 0.01 | G138: x2V | H138: =G72 -> 0 | I138: <= | J138: =G65 -> 0.01
A139: H102>=J102 | B139: 0.0046666667 | C139: 1e+100 | D139: 0.01 | G139: x3V | H139: =H72 -> 0 | I139: <= | J139: =H65 -> 0.01
A140: H103>=J103 | B140: 0.0013333333 | C140: 0.01 | D140: 0.01 | G140: x4v | H140: =I72 -> 0 | I140: <= | J140: =I65 -> 130.01
A141: H104>=J104 | B141: 0.0026666666 | C141: 1e+100 | D141: 0.01
A142: H105>=J105 | B142: 0.0046666667 | C142: 1e+100 | D142: 0.01 | G142: x1s | H142: =H125 -> 0 | I142: >= | J142: 0
A143: H106>=J106 | B143: 0 | C143: 0.01 | D143: 1e+100 | G143: x1c | H143: =H126 -> 0 | I143: >= | J143: 0
A144: H107>=J107 | B144: 0 | C144: 0.01 | D144: 1e+100 | G144: x1g | H144: 0 | I144: >= | J144: 0
A145: H108>=J108 | B145: 0.0020000001 | C145: 1e+100 | D145: 0.03 | G145: x2s | H145: 0 | I145: >= | J145: 0
A146: H109>=J109 | B146: 0 | C146: 0.01 | D146: 1e+100 | G146: x2c | H146: 0 | I146: >= | J146: 0
A147: H110>=J110 | B147: 0 | C147: 0.01 | D147: 1e+100 | G147: x2g | H147: 0 | I147: >= | J147: 0
A148: H111>=J111 | B148: 0 | C148: 0.03 | D148: 1e+100 | G148: x3s | H148: 0 | I148: >= | J148: 0
A149: H119>=J119 | B149: 0 | C149: 100 | D149: 1e+100 | G149: x3c | H149: 0 | I149: >= | J149: 0
A150: H120>=J120 | B150: 0 | C150: 99.99 | D150: 1e+100 | G150: x3g | H150: 0 | I150: >= | J150: 0
A151: H121>=J121 | B151: 0 | C151: 100.01 | D151: 1e+100 | G151: x4s | H151: 100 | I151: >= | J151: 0
A152: H122>=J122 | B152: 0 | C152: 99.97 | D152: 1e+100 | G152: x4c | H152: 30.04 | I152: >= | J152: 0
A153: H125<=J125 | B153: -10.002333 | C153: 0.01 | D153: 0 | G153: x4g | H153: 0 | I153: >= | J153: 0
A154: H126<=J126 | B154: -0.0023333334 | C154: 0.01 | D154: 0 | G154: x1V | H154: 0 | I154: >= | J154: 0
A155: H127<=J127 | B155: 0 | C155: 1e+100 | D155: 0 | G155: x2V | H155: 0 | I155: >= | J155: 0
A156: H128<=J128 | B156: -10.002333 | C156: 0.01 | D156: 0 | G156: x3V | H156: 0 | I156: >= | J156: 0
A157: H129<=J129 | B157: -0.0023333334 | C157: 0.01 | D157: 0 | G157: x4v | H157: 0 | I157: >= | J157: 0
A158: H130<=J130 | B158: 0 | C158: 1e+100 | D158: 0
A159: H131<=J131 | B159: -10.001 | C159: 0.03 | D159: 0
A160: H132<=J132 | B160: -0.001 | C160: 0.03 | D160: 0
A161: H133<=J133 | B161: 0 | C161: 1e+100 | D161: 0
A162: H134<=J134 | B162: -10 | C162: 30.04 | D162: 69.96
A163: H135<=J135 | B163: 0 | C163: 1e+100 | D163: 69.96
A164: H136<=J136 | B164: 0 | C164: 1e+100 | D164: 0
A165: H137<=J137 | B165: 0 | C165: 1e+100 | D165: 0.01
A166: H138<=J138 | B166: 0 | C166: 1e+100 | D166: 0.01
A167: H139<=J139 | B167: 0 | C167: 1e+100 | D167: 0.01
A168: H140<=J140 | B168: 0 | C168: 1e+100 | D168: 130.01
A169: H142>=J142 | B169: 0 | C169: 0 | D169: 1e+100
A170: H143>=J143 | B170: 0 | C170: 0 | D170: 1e+100
A171: H144>=J144 | B171: 9.9976667 | C171: 0 | D171: 69.96
A172: H145>=J145 | B172: 0 | C172: 0 | D172: 1e+100
A173: H146>=J146 | B173: 0 | C173: 0 | D173: 1e+100
A174: H147>=J147 | B174: 9.9976667 | C174: 0 | D174: 69.96
A175: H148>=J148 | B175: 0 | C175: 0 | D175: 1e+100
A176: H149>=J149 | B176: 0 | C176: 0 | D176: 1e+100
A177: H150>=J150 | B177: 9.999 | C177: 0 | D177: 69.96
A178: H151>=J151 | B178: 0 | C178: 100 | D178: 1e+100
A179: H152>=J152 | B179: 0 | C179: 30.04 | D179: 1e+100
A180: H153>=J153 | B180: 10 | C180: 0 | D180: 69.96
A181: H154>=J154 | B181: 14989.998 | C181: 0.01 | D181: 69.96
A182: H155>=J155 | B182: 14989.998 | C182: 0.01 | D182: 69.96
A183: H156>=J156 | B183: 14989.999 | C183: 0.01 | D183: 69.96
A184: H157>=J157 | B184: 14990 | C184: 30.04 | D184: 69.96
A185: H93=J93 | B185: 0 | C185: 0 | D185: 0
A186: H94=J94 | B186: 0 | C186: 0 | D186: 0
A187: H95=J95 | B187: 0.0013333333 | C187: 0 | D187: 0
A188: H96=J96 | B188: 0.0023333334 | C188: 0 | D188: 0
A189: H97=J97 | B189: 10.002333 | C189: 0 | D189: 0
A190: H114<=J114 | B190: 0 | C190: 1e+100 | D190: 100
A191: H115<=J115 | B191: 0 | C191: 1e+100 | D191: 100.01
A192: H116<=J116 | B192: 0 | C192: 1e+100 | D192: 99.99
A193: H117<=J117 | B193: 0 | C193: 1e+100 | D193: 100.03
A195: Vars | B195: RC | C195: Inc | D195: Dec
A196: F69 | B196: 0 | C196: 10.00233343 | D196: 1e+100
A197: G69 | B197: 0 | C197: 10.00233343 | D197: 1e+100
A198: H69 | B198: 0 | C198: 10.0010001 | D198: 1e+100
A199: I69 | B199: 0 | C199: 10.0000001 | D199: 1e+100
A200: F70 | B200: 0 | C200: 0.002333433367 | D200: 1e+100
A201: G70 | B201: 0 | C201: 0.002333433367 | D201: 1e+100
A202: H70 | B202: 0 | C202: 0.001000100047 | D202: 1e+100
A203: I70 | B203: 0 | C203: 9.997666767 | D203: 0.001000100047
A204: F71 | B204: 0 | C204: 1e+100 | D204: 9.997666767
A205: G71 | B205: 0 | C205: 1e+100 | D205: 9.997666767
A206: H71 | B206: 0 | C206: 1e+100 | D206: 9.9990001
A207: I71 | B207: 0 | C207: 1e+100 | D207: 10.0000001
A208: F72 | B208: 0 | C208: 1e+100 | D208: 14989.99767
A209: G72 | B209: 0 | C209: 1e+100 | D209: 14989.99767
A210: H72 | B210: 0 | C210: 1e+100 | D210: 14989.999
A211: I72 | B211: 0 | C211: 1e+100 | D211: 14990
A212: G75 | B212: 0 | C212: 1e+100 | D212: 0.001333433319
A213: H75 | B213: 0 | C213: 1e+100 | D213: 0.002666766638
A214: I75 | B214: 0 | C214: 1e+100 | D214: 0.004666766733
A215: H76 | B215: 0 | C215: 1e+100 | D215: 0.002666766638
A216: I76 | B216: 0 | C216: 1e+100 | D216: 0.004666766733
... 8 more rows
